Workbook

Sheet 2025年3月
A1: 陆 丰 市 2025 年 3 月 财 政 预 算 收 入 完 成 情 况 表
A2: 2025-03-31 | L2: 单位：万元
B3: 年 度 | C3: 累 计 | D3: 占 年 | E3: 上 年 | F3: 比上年 | G3: 比上年 | H3: 本 月 | I3: 上 年 | J3: 比上年 | K3: 比上年
A4: 收 入 项 目 | B4: 预 算 | C4: 完 成 | D4: 预 算 | E4: 同 期 | F4: 同期增 | G4: 同期增 | H4: 完 成 | I4: 同 月 | J4: 同月增 | K4: 同月增 | L4: 备 注
B5: 数 | C5: 数 | D5: % | E5: 完 成 | F5: 减额 | G5: (减)% | H5: 数 | I5: 完 成 | J5: 减额 | K5: (减)%
A6: （一）税收收入 | B6: 0 | C6: 15,442 | E6: 13,476 | F6: 1,966 | G6: 14.6 | H6: 4,908 | I6: 4,980 | J6: -72 | K6: -1.4 | O6: 税收收入 | P6: 101 | Q6: =VLOOKUP(P6,'[1]YB01'!$A:$C,3,FALSE) -> 15442
A7: 1、增值税 | C7: 4,414 | E7: 4,179 | F7: 235 | G7: 5.6 | H7: 1,071 | I7: 1,276 | J7: -205 | K7: -16.1 | O7: 增值税 | P7: 1010101 | Q7: =VLOOKUP(P7,'[1]YB01'!$A:$C,3,FALSE) -> 4414
A8: 2、企业所得税 | C8: 2,184 | E8: 1,235 | F8: 949 | G8: 76.8 | H8: 114 | I8: 65 | J8: 49 | K8: 75.4 | O8: 企业所得税 | P8: 10104 | Q8: =VLOOKUP(P8,'[1]YB01'!$A:$C,3,FALSE) -> 2184
A9: 3、个人所得税 | C9: 417 | E9: 358 | F9: 59 | G9: 16.5 | H9: -42 | I9: -28 | J9: -14 | K9: 50.0 | O9: 个人所得税 | P9: 10106 | Q9: =VLOOKUP(P9,'[1]YB01'!$A:$C,3,FALSE) -> 417
A10: 4、资源税 | C10: 5 | E10: 31 | F10: -26 | G10: -83.9 | H10: 1 | I10: 17 | J10: -16 | K10: -94.1 | O10: 资源税 | P10: 10107 | Q10: =VLOOKUP(P10,'[1]YB01'!$A:$C,3,FALSE) -> 5
A11: 5、城市维护建设税 | C11: 1,456 | E11: 1,322 | F11: 134 | G11: 10.1 | H11: 311 | I11: 323 | J11: -12 | K11: -3.7 | O11: 城市维护建设税 | P11: 10109 | Q11: =VLOOKUP(P11,'[1]YB01'!$A:$C,3,FALSE) -> 1456
A12: 6、房产税 | C12: 140 | E12: 324 | F12: -184 | G12: -56.8 | H12: 35 | I12: 192 | J12: -157 | K12: -81.8 | O12: 房产税 | P12: 10110 | Q12: =VLOOKUP(P12,'[1]YB01'!$A:$C,3,FALSE) -> 140
A13: 7、印花税 | C13: 624 | E13: 431 | F13: 193 | G13: 44.8 | H13: 57 | I13: 122 | J13: -65 | K13: -53.3 | O13: 印花税 | P13: 10111 | Q13: =VLOOKUP(P13,'[1]YB01'!$A:$C,3,FALSE) -> 624
A14: 8、城镇土地使用税 | C14: 120 | E14: 197 | F14: -77 | G14: -39.1 | H14: 67 | I14: 80 | J14: -13 | K14: -16.3 | O14: 城镇土地使用税 | P14: 10112 | Q14: =VLOOKUP(P14,'[1]YB01'!$A:$C,3,FALSE) -> 120
A15: 9、土地增值税 | C15: 1,613 | E15: 1,610 | F15: 3 | G15: 0.2 | H15: 1,371 | I15: 1,174 | J15: 197 | K15: 16.8 | O15: 土地增值税 | P15: 10113 | Q15: =VLOOKUP(P15,'[1]YB01'!$A:$C,3,FALSE) -> 1613
A16: 10、车船使用税 | C16: 510 | E16: 517 | F16: -7 | G16: -1.4 | H16: 119 | I16: 105 | J16: 14 | K16: 13.3 | O16: 车船使用税 | P16: 10114 | Q16: =VLOOKUP(P16,'[1]YB01'!$A:$C,3,FALSE) -> 510
A17: 11、环保税 | C17: 39 | E17: 105 | F17: -66 | G17: -62.9 | H17: 0 | I17: 47 | J17: -47 | K17: -100.0 | O17: 环保税 | P17: 10121 | Q17: =VLOOKUP(P17,'[1]YB01'!$A:$C,3,FALSE) -> 39
A18: 12、耕地占用税 | C18: 2,790 | E18: 2,022 | F18: 768 | G18: 38.0 | H18: 1,346 | I18: 1,267 | J18: 79 | K18: 6.2 | O18: 耕地占用税 | P18: 10118 | Q18: =VLOOKUP(P18,'[1]YB01'!$A:$C,3,FALSE) -> 2790
A19: 13、契 税 | C19: 1,130 | E19: 1,145 | F19: -15 | G19: -1.3 | H19: 458 | I19: 340 | J19: 118 | K19: 34.7 | O19: 契 税 | P19: 10119 | Q19: =VLOOKUP(P19,'[1]YB01'!$A:$C,3,FALSE) -> 1130
A20: 14、其他税收收入 | C20: 0 | E20: 0 | F20: 0 | H20: 0 | I20: 0 | J20: 0 | O20: 其他税收收入 | P20: 10199 | Q20: =VLOOKUP(P20,'[1]YB01'!$A:$C,3,FALSE) -> 0
A21: （二）非税收入 | B21: 0 | C21: 24,501 | E21: 25,206 | F21: -705 | G21: -2.8 | H21: 18,650 | I21: 18,218 | J21: 432 | K21: 2.4 | O21: 非税收入 | P21: 103 | Q21: =VLOOKUP(P21,'[1]YB01'!$A:$C,3,FALSE) -> 24501
A22: 1、专项收入 | C22: 1,780 | E22: 896 | F22: 884 | G22: 98.7 | H22: 222 | I22: 227 | J22: -5 | K22: -2.2 | O22: 专项收入 | P22: 10302 | Q22: =VLOOKUP(P22,'[1]YB01'!$A:$C,3,FALSE) -> 1780
A23: 2、行政事业性收费收入 | C23: 2,114 | E23: 13,463 | F23: -11,349 | G23: -84.3 | H23: 1,614 | I23: 11,130 | J23: -9,516 | K23: -85.5 | O23: 行政事业性收费收入 | P23: 10304 | Q23: =VLOOKUP(P23,'[1]YB01'!$A:$C,3,FALSE) -> 2114
A24: 3、罚没收入 | C24: 3,804 | E24: 8,225 | F24: -4,421 | G24: -53.8 | H24: 1,815 | I24: 5,557 | J24: -3,742 | K24: -67.3 | O24: 罚没收入 | P24: 10305 | Q24: =VLOOKUP(P24,'[1]YB01'!$A:$C,3,FALSE) -> 3804
A25: 4、国有资源（资产）有偿使用收入 | C25: 1,332 | E25: 836 | F25: 496 | G25: 59.3 | H25: 518 | I25: 52 | J25: 466 | K25: 896.2 | O25: 国有资源（资产）有偿使用收入 | P25: 10307 | Q25: =VLOOKUP(P25,'[1]YB01'!$A:$C,3,FALSE) -> 1332
A26: 5、政府住房基金收入 | C26: 122 | E26: 159 | F26: -37 | G26: -23.3 | H26: 0 | I26: -1 | J26: 1 | K26: -100.0 | O26: 政府住房基金收入 | P26: 10309 | Q26: =VLOOKUP(P26,'[1]YB01'!$A:$C,3,FALSE) -> 122
A27: 6、捐赠收入 | C27: 14,477 | E27: 345 | F27: 14,132 | G27: 4,096.2 | H27: 14,414 | I27: 207 | J27: 14,207 | K27: 6,863.3 | O27: 捐赠收入 | P27: 10308 | Q27: =VLOOKUP(P27,'[1]YB01'!$A:$C,3,FALSE) -> 14477
A28: 7、其他收入 | C28: 868 | E28: 1,282 | F28: -414 | G28: -32.3 | H28: 67 | I28: 1,046 | J28: -979 | K28: -93.6 | O28: 其他收入 | P28: 10399 | Q28: =VLOOKUP(P28,'[1]YB01'!$A:$C,3,FALSE) -> 868
A29: 8、国有资本经营收入 | C29: 4 | F29: 4 | H29: 0 | I29: 0 | J29: 0 | O29: 国有资本经营收入
A30: 一、一般公共预算收入 | B30: 0 | C30: 39,943 | E30: 38,682 | F30: 1,261 | G30: 3.3 | H30: 23,558 | I30: 23,198 | J30: 360 | K30: 1.6
A31: 二、政府性基金预算收入小计 | C31: 1,274 | E31: 10,126 | F31: -8,852 | G31: -87.4 | H31: 937 | I31: 7,946 | J31: 645 | K31: 8.1 | O31: 政府性基金收入 | P31: 10301 | Q31: =VLOOKUP(P31,'[1]YB01'!$A:$C,3,FALSE) -> 1274
A32: 其中：国有土地使用权出让收入 | C32: 586 | E32: 8,636 | F32: -8,050 | G32: -93.2 | H32: 669 | I32: 7,851 | J32: 422 | K32: 5.4 | O32: 其中：国有土地使用权出让收入 | P32: 1030148 | Q32: =VLOOKUP(P32,'[1]YB01'!$A:$C,3,FALSE) -> 586
A33: 三、国有资本经营收入小计 | C33: 500 | E33: 200 | F33: 300 | G33: 150.0 | H33: 0 | I33: 0 | J33: 0 | O33: 三、国有资本经营收入小计 | P33: 10306 | Q33: =VLOOKUP(P33,'[1]YB01'!$A:$C,3,FALSE) -> 4
A34: 收入合计 | B34: 0 | C34: 41,717 | E34: 49,008 | F34: -7,291 | G34: -15 | H34: 24,495 | I34: 31,144 | J34: -6,649 | K34: -21
L35: 陆丰市财政局国库股
